fUST/lending_fUST_20251206
["ID","MTS","AMOUNT","RATE_DAILY","PERIOD"]
[396506884,1765015938559,357.98,9.1e-05,2]
[396506885,1765015939018,357.98,9.2e-05,2]
[396506886,1765015939284,357.98,9.3e-05,2]
[396506887,1765015939617,357.98,9.4e-05,2]
[396506888,1765015939933,357.98,9.5e-05,2]
[396506900,1765015994902,272.06,8.3e-05,2]
[396506901,1765015995810,272.06,8.4e-05,2]
[396506902,1765015996145,272.06,8.5e-05,2]
[396506903,1765015996418,272.06,8.6e-05,2]
[396506904,1765015996792,272.06,8.7e-05,2]
[396506905,1765015997112,272.06,8.8e-05,2]
[396506906,1765015997476,272.06,9e-05,2]
[396506907,1765015997788,272.06,9.1e-05,2]
[396506908,1765015998370,272.06,9.2e-05,2]
[396506909,1765015998640,272.06,9.3e-05,2]
[396506910,1765015999234,272.06,9.4e-05,2]
[396506911,1765015999415,272.06,9.5e-05,2]
[396506921,1765016042714,238.38270358,9.603e-05,2]
[396506924,1765016055166,206.77,8.3e-05,2]
[396506925,1765016055502,206.77,8.4e-05,2]
[396506926,1765016055777,206.77,8.5e-05,2]
[396506927,1765016056047,206.77,8.6e-05,2]
[396506928,1765016056471,206.77,8.7e-05,2]
[396506929,1765016057284,206.77,8.8e-05,2]
[396506930,1765016057690,206.77,9e-05,2]
[396506931,1765016058033,206.77,9.1e-05,2]
[396506932,1765016058399,206.77,9.2e-05,2]
[396506933,1765016058720,206.77,9.3e-05,2]
[396506934,1765016059025,206.77,9.4e-05,2]
[396506935,1765016059309,206.77,8.415e-05,2]
[396506936,1765016059361,206.77,9.5e-05,2]
[396506937,1765016081878,206.77,9.603e-05,2]
[396506943,1765016116410,157.14,8.3e-05,2]
[396506944,1765016116507,157.14,8.4e-05,2]
[396506945,1765016116776,157.14,8.5e-05,2]
[396506946,1765016117068,157.14,8.6e-05,2]
[396506947,1765016117464,157.14,8.7e-05,2]
[396506948,1765016117797,157.14,8.8e-05,2]
[396506949,1765016118143,157.14,9e-05,2]
[396506950,1765016118522,157.14,9.1e-05,2]
[396506951,1765016118859,157.14,9.2e-05,2]
[396506952,1765016119238,157.14,9.3e-05,2]
[396506953,1765016119544,157.14,9.4e-05,2]
[396506954,1765016119928,157.14,9.5e-05,2]
[396506955,1765016120920,177.41829923,9.148e-05,2]
[396506958,1765016176683,153.12,8.3e-05,2]
[396506959,1765016176969,153.12,8.4e-05,2]
[396506960,1765016177897,153.12,8.6e-05,2]
[396506962,1765016178226,153.12,8.7e-05,2]
[396506963,1765016178663,153.12,8.9e-05,2]
[396506964,1765016178862,153.12,9e-05,2]
[396506965,1765016179445,153.12,9.2e-05,2]
[396506966,1765016179669,153.12,9.3e-05,2]
[396506967,1765016179768,153.12,9.5e-05,2]
[396506968,1765016180055,153.12,9.6e-05,2]
[396506971,1765016233697,153.11,8.3e-05,2]
[396506972,1765016233971,153.11,8.5e-05,2]
[396506973,1765016234299,153.11,8.7e-05,2]
[396506974,1765016234577,153.11,8.9e-05,2]
[396506975,1765016234972,153.11,9.1e-05,2]
[396506976,1765016235290,153.11,9.3e-05,2]
[396506977,1765016235586,153.11,9.5e-05,2]
[396506980,1765016248883,153.11,9.603e-05,2]
[396506984,1765016271924,153.11,9.603e-05,2]
[396506987,1765016291574,153.11,8.3e-05,2]
[396506988,1765016291898,153.11,8.5e-05,2]
[396506989,1765016292204,153.11,8.8e-05,2]
[396506990,1765016292640,153.11,9.1e-05,2]
[396506991,1765016293155,153.11,9.3e-05,2]
[396506992,1765016293441,153.11,9.6e-05,2]
[396506994,1765016349059,153.12,8.3e-05,2]
[396506995,1765016349475,153.12,8.6e-05,2]
[396506996,1765016349562,153.12,9e-05,2]
[396506997,1765016349836,153.12,9.4e-05,2]
[396507002,1765016407588,153.12,8.3e-05,2]
[396507003,1765016407909,153.12,8.8e-05,2]
[396507004,1765016408210,153.12,9.3e-05,2]
[396507012,1765016466632,153.11,8.3e-05,2]
[396507013,1765016466924,153.11,9e-05,2]
[396507014,1765016486792,153.11,9.603e-05,2]
[396507018,1765016494883,153.11,9.603e-05,2]
[396507021,1765016510409,153.11,9.603e-05,2]
[396507023,1765016518700,153.11,9.603e-05,2]
[396507025,1765016526369,153.12,8.3e-05,2]
[396507026,1765016526678,153.12,9.2e-05,2]
[396507027,1765016542141,231.0,9.601e-05,2]
[396507030,1765016564185,231.0,9.601e-05,2]
[396507035,1765016584851,153.11,8.3e-05,2]
[396507036,1765016586903,231.0,9.601e-05,2]
[396507060,1765016608600,231.0,9.601e-05,2]
[396507061,1765016631071,-152.47095589,9.698e-05,2]
[396507062,1765016631118,231.0,9.601e-05,2]
[396507064,1765016633277,-78.52904411,9.698e-05,2]
[396507065,1765016633300,-73.94095589,9.7e-05,2]
[396507068,1765016645484,179.51,8.3e-05,2]
[396507069,1765016654816,231.0,9.601e-05,2]
[396507071,1765016677844,231.0,9.601e-05,2]
[396507073,1765016700516,231.0,9.601e-05,2]
[396507077,1765016704074,179.5,8.3e-05,2]
[396507081,1765016722524,231.0,9.601e-05,2]
[396507086,1765016744660,231.0,9.601e-05,2]
[396507099,1765016767606,231.0,9.601e-05,2]
[396507102,1765016789618,231.0,9.601e-05,2]
[396507103,1765016811719,231.0,9.601e-05,2]
[396507107,1765016835336,182.88170077,9.601e-05,2]
[396507108,1765016835357,48.11829923,9.601e-05,2]
[396507110,1765016851897,231.0,9.601e-05,2]
[396507111,1765016859865,173.86993324,9.65e-05,2]
[396507112,1765016874993,173.86993324,9.65e-05,2]
[396507114,1765016882960,173.86993324,9.65e-05,2]
[396507118,1765016898706,173.86993324,9.65e-05,2]
[396507119,1765016906596,173.86993324,9.65e-05,2]
[396507130,1765016922230,173.86993324,9.65e-05,2]
[396507131,1765016930642,173.86993324,9.65e-05,2]
[396507133,1765016942289,202.1,8.3e-05,2]
[396507134,1765016943333,250.0,0.00013083,3]
[396507135,1765016945314,173.86993324,9.65e-05,2]
[396507136,1765016954615,173.86993324,9.65e-05,2]
[396507137,1765016971265,173.86993324,9.65e-05,2]
[396507139,1765016979696,173.86993324,9.65e-05,2]
[396507141,1765016994940,173.86993324,9.65e-05,2]
[396507145,1765017002678,173.86993324,9.65e-05,2]
[396507150,1765017019137,403.86993324,9.65e-05,2]
[396507152,1765017026913,403.86993324,9.65e-05,2]
[396507180,1765017031809,-173.86993324,9.747e-05,2]
[396507183,1765017031828,-230.0,9.747e-05,2]
[396507184,1765017031845,-647.90857148,9.774e-05,2]
[396507185,1765017031899,-333.64153303,9.774e-05,2]
[396507186,1765017031915,-218.44989549,9.774e-05,2]
[396507187,1765017031932,-280.05898633,9.775e-05,2]
[396507188,1765017031946,-504.10617539,9.775e-05,2]
[396507189,1765017031961,-896.18875624,9.775e-05,2]
[396507190,1765017031976,-1398.8946367,9.775e-05,2]
[396507191,1765017031990,-300.0,0.00010199,2]
[396507192,1765017032004,-3214.67024486,0.000102,2]
[396507195,1765017037979,-1053.67641307,0.000102,2]
[396507196,1765017038033,-731.65334207,0.000102,2]
[396507197,1765017038043,-300.0,0.00010251,2]
[396507199,1765017038052,-300.0,0.00010251,2]
[396507200,1765017038062,-300.0,0.00010251,2]
[396507201,1765017038071,-300.0,0.00010251,2]
[396507202,1765017038081,-1200.0,0.00010252,2]
[396507203,1765017038090,-5037.0,0.00010256,2]
[396507204,1765017038099,-500.0,0.00010287,2]
[396507205,1765017038108,-245.63500939,0.00010287,2]
[396507206,1765017038118,-500.0,0.00010287,2]
[396507207,1765017038128,-340.00627839,0.00010287,2]
[396507208,1765017038138,-500.0,0.00010287,2]
[396507209,1765017038147,-500.0,0.00010287,2]
[396507210,1765017038156,-507.43072664,0.00010287,2]
[396507211,1765017038165,-500.0,0.00010287,2]
[396507212,1765017038175,-500.0,0.00010287,2]
[396507213,1765017038185,-500.0,0.00010287,2]
[396507214,1765017038194,-500.0,0.00010287,2]
[396507215,1765017038203,-500.0,0.00010287,2]
[396507216,1765017038212,-500.0,0.00010287,2]
[396507217,1765017038222,-500.0,0.00010287,2]
[396507218,1765017038232,-500.0,0.00010287,2]
[396507219,1765017038244,-500.0,0.00010287,2]
[396507220,1765017038254,-500.0,0.00010287,2]
[396507221,1765017038263,-500.0,0.00010287,2]
[396507222,1765017038273,-500.0,0.00010287,2]
[396507223,1765017038282,-500.0,0.00010287,2]
[396507224,1765017038291,-241.90439475,0.00010287,2]
[396507225,1765017038299,-500.0,0.00010287,2]
[396507226,1765017038309,-392.93765959,0.00010287,2]
[396507227,1765017038321,-500.0,0.00010287,2]
[396507228,1765017038330,-2312.83697232,0.00010291,2]
[396507229,1765017038339,-299.476,0.00010299,2]
[396507230,1765017038348,-5000.0,0.000103,2]
[396507231,1765017038357,-153.29483991,0.000104,2]
[396507232,1765017038367,-250.0,0.00010452,2]
[396507233,1765017038376,-250.0,0.00010452,2]
[396507234,1765017038385,-250.0,0.00010452,2]
[396507235,1765017038395,-241.13557858,0.00010452,2]
[396507236,1765017038404,-500.0,0.00010452,2]
[396507237,1765017038414,-500.0,0.00010452,2]
[396507238,1765017038423,-500.0,0.00010452,2]
[396507240,1765017038433,-500.0,0.00010452,2]
[396507241,1765017038442,-500.0,0.00010452,2]
[396507242,1765017038451,-500.0,0.00010452,2]
[396507243,1765017038460,-500.0,0.00010452,2]
[396507244,1765017038469,-500.0,0.00010452,2]
[396507245,1765017038478,-500.0,0.00010452,2]
[396507246,1765017038487,-500.0,0.00010452,2]
[396507247,1765017038496,-500.0,0.00010452,2]
[396507248,1765017038505,-500.0,0.00010452,2]
[396507249,1765017038514,-500.0,0.00010452,2]
[396507250,1765017038524,-500.0,0.00010452,2]
[396507251,1765017038533,-500.0,0.00010452,2]
[396507252,1765017038543,-500.0,0.00010452,2]
[396507253,1765017038552,-500.0,0.00010452,2]
[396507254,1765017038561,-500.0,0.00010452,2]
[396507255,1765017038570,-500.0,0.00010452,2]
[396507256,1765017038580,-500.0,0.00010452,2]
[396507257,1765017038589,-500.0,0.00010452,2]
[396507258,1765017038598,-500.0,0.00010452,2]
[396507259,1765017038607,-500.0,0.00010452,2]
[396507260,1765017038617,-500.0,0.00010452,2]
[396507261,1765017038627,-500.0,0.00010452,2]
[396507262,1765017038636,-500.0,0.00010452,2]
[396507263,1765017038646,-500.0,0.00010452,2]
[396507264,1765017038655,-500.0,0.00010452,2]
[396507265,1765017038664,-500.0,0.00010452,2]
[396507266,1765017038674,-500.0,0.00010452,2]
[396507267,1765017038683,-500.0,0.00010452,2]
[396507268,1765017038692,-500.0,0.00010452,2]
[396507269,1765017038701,-508.3651731,0.00010452,2]
[396507270,1765017038711,-500.0,0.00010452,2]
[396507271,1765017038719,-500.0,0.00010452,2]
[396507272,1765017038728,-500.0,0.00010452,2]
[396507273,1765017038738,-500.0,0.00010452,2]
[396507274,1765017038747,-500.0,0.00010452,2]
[396507275,1765017038757,-500.0,0.00010452,2]
[396507276,1765017038766,-301.96836343,0.00010457,2]
[396507277,1765017038775,-492325.12809764,0.00010458,2]
[396507308,1765017040218,-1000.0,0.00010458,2]
[396507310,1765017040229,-28101.2518715,0.00010458,2]
[396507508,1765017042103,2004.11115423,0.000211,120]
[396507609,1765017043094,-29029.89471544,0.00010354,2]
[396507627,1765017043258,-792.54,0.00010354,2]
[396507859,1765017046380,-32146.37524792,0.00010354,2]
[396507860,1765017046389,-26448.32607125,0.00010458,2]
[396507896,1765017161898,458.21094303,9.647e-05,2]
[396508082,1765017630457,2709.4406221,9.652e-05,2]
[396508083,1765017646615,2709.4406221,9.652e-05,2]
[396508084,1765017654505,230.0,9.652e-05,2]
[396508085,1765017669816,230.0,9.652e-05,2]
[396508086,1765017678072,113.65051494,9.652e-05,2]
[396508087,1765017678095,116.34948506,9.652e-05,2]
[396508088,1765017693216,230.0,9.652e-05,2]
[396508089,1765017701522,230.0,9.652e-05,2]
[396508090,1765017716981,230.0,9.652e-05,2]
[396508092,1765017725213,230.0,9.652e-05,2]
[396508093,1765017740872,230.0,9.652e-05,2]
[396508094,1765017749238,230.0,9.652e-05,2]
[396508095,1765017765624,230.0,9.652e-05,2]
[396508096,1765017773267,230.0,9.652e-05,2]
[396508097,1765017788400,230.0,9.652e-05,2]
[396508098,1765017796791,230.0,9.652e-05,2]
[396508099,1765017811931,230.0,9.652e-05,2]
[396508100,1765017819703,230.0,9.652e-05,2]
[396508101,1765017835983,230.0,9.652e-05,2]
[396508102,1765017843797,230.0,9.652e-05,2]
[396508103,1765017859633,230.0,9.652e-05,2]
[396508105,1765017867559,230.0,9.652e-05,2]
[396508106,1765017882762,230.0,9.652e-05,2]
[396508107,1765017891144,230.0,9.652e-05,2]
[396508113,1765017905990,230.0,9.652e-05,2]
[396508117,1765017914097,230.0,9.652e-05,2]
[396508118,1765017929563,230.0,9.652e-05,2]
[396508122,1765017937896,230.0,9.652e-05,2]
[396508123,1765017953649,230.0,9.652e-05,2]
[396508124,1765017961994,230.0,9.652e-05,2]
[396508125,1765017977694,230.0,9.652e-05,2]
[396508126,1765017985515,230.0,9.652e-05,2]
[396508128,1765018000609,230.0,9.652e-05,2]
[396508132,1765018008878,230.0,9.652e-05,2]
[396508134,1765018024091,230.0,9.652e-05,2]
[396508135,1765018031912,230.0,9.652e-05,2]
[396508136,1765018047221,230.0,9.652e-05,2]
[396508137,1765018055536,230.0,9.652e-05,2]
[396508139,1765018070832,230.0,9.652e-05,2]
[396508141,1765018078573,230.0,9.652e-05,2]
[396508146,1765018094276,230.0,9.652e-05,2]
[396508158,1765018116605,230.0,9.652e-05,2]
[396508171,1765018138851,230.0,9.652e-05,2]
[396508173,1765018142538,250.0,0.00013082,3]
[396508182,1765018162625,230.0,9.652e-05,2]
[396508185,1765018185182,230.0,9.652e-05,2]
[396508191,1765018207940,230.0,9.652e-05,2]
[396508192,1765018231481,230.0,9.652e-05,2]
[396508258,1765018240618,-230.0,9.749e-05,2]
[396508260,1765018240627,-173.39253458,9.811e-05,2]
[396508262,1765018240637,-458.44048678,0.00010092,2]
[396508264,1765018240646,-529.91251883,0.00010147,2]
[396508266,1765018240656,-1183.98051472,0.00010247,2]
[396508268,1765018240665,-300.0,0.00010251,2]
[396508270,1765018240680,-300.0,0.00010251,2]
[396508271,1765018240689,-300.0,0.00010251,2]
[396508273,1765018240698,-300.0,0.00010251,2]
[396508275,1765018240708,-1200.0,0.00010251,2]
[396508277,1765018240717,-500.0,0.00010251,2]
[396508279,1765018240727,-462.24922933,0.00010251,2]
[396508281,1765018240737,-500.0,0.00010251,2]
[396508283,1765018240746,-500.0,0.00010251,2]
[396508285,1765018240755,-500.0,0.00010251,2]
[396508287,1765018240764,-500.0,0.00010251,2]
[396508289,1765018240773,-500.0,0.00010251,2]
[396508291,1765018240782,-500.0,0.00010251,2]
[396508293,1765018240792,-500.0,0.00010251,2]
[396508295,1765018240801,-500.0,0.00010251,2]
[396508297,1765018240811,-500.0,0.00010251,2]
[396508299,1765018240820,-221.95768539,0.00010251,2]
[396508301,1765018240830,-500.0,0.00010251,2]
[396508303,1765018240843,-500.0,0.00010251,2]
[396508305,1765018240852,-500.0,0.00010251,2]
[396508307,1765018240862,-500.0,0.00010251,2]
[396508309,1765018240871,-418.34196317,0.00010251,2]
[396508311,1765018240881,-500.0,0.00010251,2]
[396508313,1765018240891,-451.37852916,0.00010251,2]
[396508315,1765018240899,-500.0,0.00010251,2]
[396508317,1765018240908,-333.68132758,0.00010251,2]
[396508319,1765018240919,-500.0,0.00010251,2]
[396508321,1765018240929,-500.0,0.00010251,2]
[396508322,1765018240939,-500.0,0.00010251,2]
[396508324,1765018240948,-500.0,0.00010251,2]
[396508326,1765018240957,-500.0,0.00010251,2]
[396508328,1765018240967,-500.0,0.00010251,2]
[396508331,1765018240975,-500.0,0.00010251,2]
[396508332,1765018240985,-500.0,0.00010251,2]
[396508334,1765018240994,-500.0,0.00010251,2]
[396508336,1765018241003,-500.0,0.00010251,2]
[396508338,1765018241013,-500.0,0.00010251,2]
[396508340,1765018241023,-500.0,0.00010251,2]
[396508342,1765018241032,-500.0,0.00010251,2]
[396508344,1765018241041,-500.0,0.00010251,2]
[396508346,1765018241050,-500.0,0.00010251,2]
[396508348,1765018241059,-500.0,0.00010251,2]
[396508350,1765018241069,-500.0,0.00010251,2]
[396508352,1765018241078,-500.0,0.00010251,2]
[396508354,1765018241087,-500.0,0.00010251,2]
[396508356,1765018241096,-500.0,0.00010251,2]
[396508358,1765018241105,-450.15916011,0.00010251,2]
[396508360,1765018241115,-500.0,0.00010251,2]
[396508362,1765018241124,-500.0,0.00010251,2]
[396508364,1765018241133,-300.93236339,0.00010251,2]
[396508366,1765018241142,-500.0,0.00010251,2]
[396508368,1765018241151,-500.0,0.00010251,2]
[396508370,1765018241160,-500.0,0.00010251,2]
[396508372,1765018241169,-500.0,0.00010251,2]
[396508373,1765018241178,-500.0,0.00010251,2]
[396508375,1765018241186,-194.52973878,0.00010251,2]
[396508377,1765018241196,-500.0,0.00010251,2]
[396508379,1765018241205,-500.0,0.00010251,2]
[396508381,1765018241214,-1200.0,0.00010252,2]
[396508383,1765018241223,-3297.1754343,0.00010252,2]
[396508385,1765018241232,-153.819,0.00010253,2]
[396508387,1765018241241,-500.0,0.00010253,2]
[396508389,1765018241250,-151.0,0.00010253,2]
[396508391,1765018241260,-151.67290739,0.00010253,2]
[396508393,1765018241269,-151.0,0.00010253,2]
[396508395,1765018241278,-151.0,0.00010253,2]
[396508397,1765018241287,-151.0,0.00010253,2]
[396508399,1765018241296,-151.0,0.00010253,2]
[396508401,1765018241305,-153.40586686,0.00010253,2]
[396508403,1765018241313,-500.0,0.00010253,2]
[396508405,1765018241322,-151.35745905,0.00010253,2]
[396508407,1765018241331,-151.58468808,0.00010253,2]
[396508409,1765018241340,-500.0,0.00010253,2]
[396508411,1765018241349,-151.0,0.00010253,2]
[396508413,1765018241358,-151.0,0.00010253,2]
[396508415,1765018241367,-151.0,0.00010253,2]
[396508416,1765018241376,-151.0,0.00010253,2]
[396508418,1765018241385,-500.0,0.00010253,2]
[396508420,1765018241393,-500.0,0.00010253,2]
[396508422,1765018241402,-176.01194387,0.00010253,2]
[396508424,1765018241412,-500.0,0.00010253,2]
[396508426,1765018241421,-253.03467335,0.00010352,2]
[396508428,1765018241430,-221.45294546,0.00010352,2]
[396508430,1765018241438,-250.0,0.00010352,2]
[396508432,1765018241448,-500.0,0.00010352,2]
[396508434,1765018241456,-1000.0,0.00010352,2]
[396508436,1765018241465,-203.0,0.00010352,2]
[396508438,1765018241475,-500.0,0.00010352,2]
[396508440,1765018241484,-1000.0,0.00010352,2]
[396508442,1765018241493,-1000.0,0.00010352,2]
[396508444,1765018241501,-500.0,0.00010352,2]
[396508446,1765018241511,-1000.0,0.00010352,2]
[396508448,1765018241520,-1000.0,0.00010352,2]
[396508450,1765018241529,-500.0,0.00010352,2]
[396508452,1765018241538,-1000.0,0.00010352,2]
[396508454,1765018241547,-500.0,0.00010352,2]
[396508456,1765018241556,-1000.0,0.00010352,2]
[396508458,1765018241565,-500.0,0.00010352,2]
[396508459,1765018241574,-250.0,0.00010352,2]
[396508461,1765018241582,-500.0,0.00010352,2]
[396508463,1765018241591,-1067.87266344,0.00010352,2]
[396508465,1765018241600,-500.0,0.00010352,2]
[396508467,1765018241609,-250.0,0.00010352,2]
[396508469,1765018241618,-500.0,0.00010352,2]
[396508471,1765018241626,-500.0,0.00010352,2]
[396508473,1765018241635,-250.0,0.00010352,2]
[396508475,1765018241644,-500.0,0.00010352,2]
[396508476,1765018241653,-250.0,0.00010352,2]
[396508478,1765018241662,-500.0,0.00010352,2]
[396508480,1765018241671,-500.0,0.00010352,2]
[396508482,1765018241680,-206.09063243,0.00010352,2]
[396508484,1765018241689,-500.0,0.00010352,2]
[396508486,1765018241698,-500.0,0.00010352,2]
[396508488,1765018241707,-500.0,0.00010352,2]
[396508490,1765018241718,-500.0,0.00010352,2]
[396508492,1765018241727,-500.0,0.00010352,2]
[396508494,1765018241736,-500.0,0.00010352,2]
[396508497,1765018241746,-151.0,0.00010352,2]
[396508498,1765018241755,-500.0,0.00010352,2]
[396508500,1765018241764,-500.0,0.00010352,2]
[396508502,1765018241773,-151.0,0.00010352,2]
[396508504,1765018241783,-500.0,0.00010352,2]
[396508506,1765018241792,-151.0,0.00010352,2]
[396508508,1765018241801,-500.0,0.00010352,2]
[396508510,1765018241811,-151.0,0.00010352,2]
[396508512,1765018241819,-500.0,0.00010352,2]
[396508514,1765018241828,-151.0,0.00010352,2]
[396508516,1765018241839,-500.0,0.00010352,2]
[396508518,1765018241849,-151.0,0.00010352,2]
[396508520,1765018241858,-500.0,0.00010352,2]
[396508522,1765018241867,-151.0,0.00010352,2]
[396508524,1765018241876,-151.0,0.00010352,2]
[396508526,1765018241885,-151.0,0.00010352,2]
[396508528,1765018241894,-151.0,0.00010352,2]
[396508530,1765018241903,-151.0,0.00010352,2]
[396508532,1765018241911,-151.0,0.00010352,2]
[396508534,1765018241920,-151.0,0.00010352,2]
[396508536,1765018241930,-151.0,0.00010352,2]
[396508538,1765018241940,-151.0,0.00010352,2]
[396508540,1765018241950,-151.0,0.00010352,2]
[396508542,1765018241959,-500.0,0.00010352,2]
[396508544,1765018241968,-151.0,0.00010352,2]
[396508546,1765018241977,-500.0,0.00010352,2]
[396508548,1765018241986,-151.0,0.00010352,2]
[396508550,1765018241995,-503.3877327,0.00010352,2]
[396508552,1765018242004,-151.0,0.00010352,2]
[396508554,1765018242012,-151.95861838,0.00010352,2]
[396508556,1765018242021,-757389.75761391,0.00010358,2]
[396508684,1765018243249,-500.0,0.00010251,2]
[396508686,1765018243259,-394.2159597,0.00010251,2]
[396508850,1765018247863,-105.7840403,0.00010251,2]
[396508851,1765018247872,-500.0,0.00010251,2]
[396508852,1765018247881,-500.0,0.00010251,2]
[396508853,1765018247891,-500.0,0.00010251,2]
[396508854,1765018247901,-500.0,0.00010251,2]
[396508855,1765018247910,-462.5934343,0.00010251,2]
[396508856,1765018262064,152.54,8.3e-05,2]
[396508857,1765018262376,152.54,8.9e-05,2]
[396508858,1765018262688,152.54,9.5e-05,2]
[396508877,1765018325296,156.05,8.3e-05,2]
[396508878,1765018325658,156.05,8.6e-05,2]
[396508879,1765018326142,30.29,8.9e-05,2]
[396508880,1765018326168,125.76,8.9e-05,2]
[396508881,1765018326278,156.05,9.2e-05,2]
[396508882,1765018326479,156.05,9.5e-05,2]
[396508885,1765018388628,156.05,8.3e-05,2]
[396508886,1765018388959,156.05,8.7e-05,2]
[396508887,1765018389446,156.05,9.1e-05,2]
[396508888,1765018389714,156.05,9.5e-05,2]
[396508892,1765018448008,156.05,8.3e-05,2]
[396508893,1765018448226,156.05,8.8e-05,2]
[396508894,1765018448501,156.05,9.4e-05,2]
[396508913,1765018506193,156.05,8.3e-05,2]
[396508914,1765018506511,156.05,9.1e-05,2]
[396508915,1765018564821,156.05,8.3e-05,2]
[396508916,1765018565108,156.05,9.4e-05,2]
[396508921,1765018624497,156.05,8.3e-05,2]
[396508930,1765018640405,169.92468389,9.629e-05,2]
[396508949,1765018684299,156.05,8.3e-05,2]
[396508953,1765018743696,156.04,8.3e-05,2]
[396508972,1765018843660,399.92468389,9.629e-05,2]
[396508986,1765018860317,399.92468389,9.629e-05,2]
[396508989,1765018868089,230.0,9.629e-05,2]
[396508995,1765018884353,230.0,9.629e-05,2]
[396508998,1765018892155,230.0,9.629e-05,2]
[396509003,1765018907782,230.0,9.629e-05,2]
[396509009,1765018915541,230.0,9.629e-05,2]
[396509013,1765018930885,230.0,9.629e-05,2]
[396509050,1765018954753,230.0,9.629e-05,2]
[396509051,1765018969866,224.75695305,9.343e-05,2]
[396509052,1765018972119,404.56251549,9.343e-05,2]
[396509053,1765018974616,719.22224975,9.343e-05,2]
[396509054,1765018976941,1122.66098047,9.343e-05,2]
[396509055,1765018977113,230.0,9.629e-05,2]
[396509062,1765018999891,230.0,9.629e-05,2]
[396509071,1765019022237,230.0,9.629e-05,2]
[396509172,1765019044762,230.0,9.629e-05,2]
[396509173,1765019067549,230.0,9.629e-05,2]
[396509174,1765019090909,230.0,9.629e-05,2]
[396509182,1765019114254,230.0,9.629e-05,2]
[396509187,1765019118708,525.02600008,9.343e-05,2]
[396509188,1765019121081,945.04680015,9.343e-05,2]
[396509190,1765019123662,1680.08320027,9.343e-05,2]
[396509193,1765019126530,202.76193296,9.343e-05,2]
[396509194,1765019126553,2422.36806746,9.343e-05,2]
[396509195,1765019128660,3780.1872006,9.343e-05,2]
[396509197,1765019130756,3797.45473194,9.343e-05,2]
[396509198,1765019130778,1342.65481408,9.343e-05,2]
[396509201,1765019137030,230.0,9.629e-05,2]
[396509209,1765019159389,230.0,9.629e-05,2]
[396509219,1765019181860,230.0,9.629e-05,2]
[396509227,1765019204683,230.0,9.629e-05,2]
[396509232,1765019228651,-230.0,9.629e-05,2]
[396509233,1765019249779,230.0,9.629e-05,2]
[396509234,1765019271706,203.04324185,9.343e-05,2]
[396509235,1765019272775,230.0,9.629e-05,2]
[396509241,1765019295850,230.0,9.629e-05,2]
[396509258,1765019318376,230.0,9.629e-05,2]
[396509261,1765019341320,230.0,9.629e-05,2]
[396509262,1765019342698,250.0,0.00013081,3]
[396509274,1765019363834,230.0,9.629e-05,2]
[396509288,1765019386660,230.0,9.629e-05,2]
[396509297,1765019410022,230.0,9.629e-05,2]